[Event "Titled Tuesday Blitz August 1 Early 2023"]
[White "Nagare Kaivalya Sandip"]
[Black "Zemlyanskii, Ivan"]
[WhiteFideId "25957929"]
[BlackFideId "24249971"]
[WhiteElo "2690"]
[BlackElo "2931"]
[Result "0-1"]
[Round "5"]
[TimeControl "180+1"]
[Date "2023.08.01"]
[WhiteClock "0:00:13"]
[BlackClock "0:00:16"]
[Board "26"]

1. e4 {[%clk 0:03:00]}  c5 {[%clk 0:02:58]} 2. Nf3 {[%clk 0:03:01]}  e6 {[%clk 0:02:59]} 3. d4 {[%clk 0:03:01]}  cxd4 {[%clk 0:03:00]} 4. Nxd4 {[%clk 0:03:02]}  Nf6 {[%clk 0:03:00]} 5. Nc3 {[%clk 0:03:02]}  Nc6 {[%clk 0:03:00]} 6. Ndb5 {[%clk 0:03:02]}  Bc5 {[%clk 0:02:59]} 7. Nd6+ {[%clk 0:03:01]}  Ke7 {[%clk 0:02:59]} 8. Bf4 {[%clk 0:02:41]}  e5 {[%clk 0:02:57]} 9. Nf5+ {[%clk 0:02:40]}  Kf8 {[%clk 0:02:57]} 10. Be3 {[%clk 0:02:40]}  Bb4 {[%clk 0:02:55]} 11. a3 {[%clk 0:02:29]}  Bxc3+ {[%clk 0:02:42]} 12. bxc3 {[%clk 0:02:30]}  d5 {[%clk 0:02:42]} 13. exd5 {[%clk 0:01:50]}  Nxd5 {[%clk 0:02:35]} 14. Bc4 {[%clk 0:01:34]}  Nxe3 {[%clk 0:02:08]} 15. Qxd8+ {[%clk 0:01:29]}  Nxd8 {[%clk 0:02:07]} 16. Nxe3 {[%clk 0:01:30]}  Be6 {[%clk 0:02:07]} 17. O-O {[%clk 0:01:29]}  Rc8 {[%clk 0:02:05]} 18. Bxe6 {[%clk 0:01:27]}  Nxe6 {[%clk 0:02:04]} 19. c4 {[%clk 0:01:28]}  f6 {[%clk 0:02:03]} 20. Rfd1 {[%clk 0:01:21]}  Nc5 {[%clk 0:01:34]} 21. Nf5 {[%clk 0:01:11]}  g6 {[%clk 0:01:13]} 22. Nd6 {[%clk 0:01:10]}  Rd8 {[%clk 0:01:12]} 23. Rd5 {[%clk 0:01:02]}  b6 {[%clk 0:01:12]} 24. Rad1 {[%clk 0:01:01]}  Ke7 {[%clk 0:01:12]} 25. Nb5 {[%clk 0:01:00]}  a6 {[%clk 0:00:52]} 26. Nc3 {[%clk 0:01:00]}  Rxd5 {[%clk 0:00:43]} 27. Nxd5+ {[%clk 0:00:58]}  Ke6 {[%clk 0:00:43]} 28. Nxb6 {[%clk 0:00:58]}  Rb8 {[%clk 0:00:43]} 29. Nd5 {[%clk 0:00:55]}  Rb2 {[%clk 0:00:42]} 30. Nb4 {[%clk 0:00:54]}  a5 {[%clk 0:00:28]} 31. Nd3 {[%clk 0:00:54]}  Nxd3 {[%clk 0:00:28]} 32. cxd3 {[%clk 0:00:54]}  Ra2 {[%clk 0:00:28]} 33. Kf1 {[%clk 0:00:43]}  Rxa3 {[%clk 0:00:28]} 34. Ke2 {[%clk 0:00:43]}  Ra2+ {[%clk 0:00:26]} 35. Ke3 {[%clk 0:00:42]}  a4 {[%clk 0:00:26]} 36. Rb1 {[%clk 0:00:41]}  a3 {[%clk 0:00:21]} 37. Rb6+ {[%clk 0:00:41]}  Kf5 {[%clk 0:00:21]} 38. Ra6 {[%clk 0:00:40]}  Ra1 {[%clk 0:00:20]} 39. h4 {[%clk 0:00:31]}  h5 {[%clk 0:00:18]} 40. Kf3 {[%clk 0:00:24]}  g5 {[%clk 0:00:17]} 41. hxg5 {[%clk 0:00:20]}  fxg5 {[%clk 0:00:18]} 42. Ra5 {[%clk 0:00:21]}  h4 {[%clk 0:00:14]} 43. d4 {[%clk 0:00:20]}  g4+ {[%clk 0:00:14]} 44. Ke2 {[%clk 0:00:20]}  h3 {[%clk 0:00:14]} 45. gxh3 {[%clk 0:00:20]}  gxh3 {[%clk 0:00:15]} 46. Rxe5+ {[%clk 0:00:20]}  Kf6 {[%clk 0:00:16]} 47. Rh5 {[%clk 0:00:16]}  a2 {[%clk 0:00:15]} 48. Rxh3 {[%clk 0:00:15]}  Rc1 {[%clk 0:00:16]} 49. Rh6+ {[%clk 0:00:14]}  Kf5 {[%clk 0:00:15]} 50. Ra6 {[%clk 0:00:14]}  a1=Q {[%clk 0:00:15]} 51. Rxa1 {[%clk 0:00:15]}  Rxa1 {[%clk 0:00:15]} 52. Kd3 {[%clk 0:00:15]}  Ra3+ {[%clk 0:00:16]} 53. Kc2 {[%clk 0:00:13]}  Ke4 {[%clk 0:00:16]} 0-1


[Site "https://www.chess.com"]

[Event "Titled Tuesday Blitz August 1 Early 2023"]
[White "Gholami Orimi, Mahdi"]
[Black "Skliarov, Viktor"]
[WhiteFideId "12558486"]
[BlackFideId "14106736"]
[WhiteElo "2907"]
[BlackElo "2673"]
[Result "1-0"]
[Round "5"]
[TimeControl "180+1"]
[Date "2023.08.01"]
[WhiteClock "0:00:17"]
[BlackClock "0:00:04"]
[Board "27"]

1. e4 {[%clk 0:02:53]}  c5 {[%clk 0:02:59]} 2. Nf3 {[%clk 0:02:52]}  Nc6 {[%clk 0:02:59]} 3. d4 {[%clk 0:02:53]}  cxd4 {[%clk 0:02:59]} 4. Nxd4 {[%clk 0:02:53]}  Nf6 {[%clk 0:03:00]} 5. Nc3 {[%clk 0:02:54]}  e5 {[%clk 0:03:00]} 6. Ndb5 {[%clk 0:02:53]}  d6 {[%clk 0:03:00]} 7. a4 {[%clk 0:02:51]}  a6 {[%clk 0:03:00]} 8. Na3 {[%clk 0:02:51]}  Bg4 {[%clk 0:03:01]} 9. f3 {[%clk 0:02:48]}  Be6 {[%clk 0:03:01]} 10. Bg5 {[%clk 0:02:49]}  Nb4 {[%clk 0:02:55]} 11. Bc4 {[%clk 0:02:45]}  Rc8 {[%clk 0:02:46]} 12. Bb3 {[%clk 0:02:40]}  Bxb3 {[%clk 0:02:12]} 13. cxb3 {[%clk 0:02:41]}  h6 {[%clk 0:02:12]} 14. Bxf6 {[%clk 0:02:39]}  Qxf6 {[%clk 0:02:11]} 15. Nc4 {[%clk 0:02:40]}  Qh4+ {[%clk 0:01:53]} 16. g3 {[%clk 0:02:38]}  Qh3 {[%clk 0:01:53]} 17. Ne3 {[%clk 0:02:35]}  Be7 {[%clk 0:01:47]} 18. Qe2 {[%clk 0:02:32]}  g6 {[%clk 0:01:43]} 19. O-O-O {[%clk 0:02:13]}  Bg5 {[%clk 0:01:07]} 20. Kb1 {[%clk 0:02:11]}  Bxe3 {[%clk 0:00:53]} 21. Qxe3 {[%clk 0:02:12]}  Qg2 {[%clk 0:00:54]} 22. Rc1 {[%clk 0:01:52]}  O-O {[%clk 0:00:53]} 23. Rhg1 {[%clk 0:01:49]}  Qh3 {[%clk 0:00:47]} 24. Qb6 {[%clk 0:01:50]}  Nc6 {[%clk 0:00:37]} 25. Nd5 {[%clk 0:01:50]}  Kg7 {[%clk 0:00:33]} 26. f4 {[%clk 0:00:51]}  Qxh2 {[%clk 0:00:25]} 27. Qe3 {[%clk 0:00:44]}  Nd4 {[%clk 0:00:22]} 28. Nc3 {[%clk 0:00:35]}  Nxb3 {[%clk 0:00:18]} 29. Rcd1 {[%clk 0:00:35]}  h5 {[%clk 0:00:12]} 30. f5 {[%clk 0:00:32]}  Nd4 {[%clk 0:00:12]} 31. g4 {[%clk 0:00:28]}  Qc2+ {[%clk 0:00:12]} 32. Ka1 {[%clk 0:00:24]}  Qb3 {[%clk 0:00:08]} 33. Rxd4 {[%clk 0:00:25]}  exd4 {[%clk 0:00:07]} 34. Qxd4+ {[%clk 0:00:26]}  f6 {[%clk 0:00:05]} 35. gxh5 {[%clk 0:00:24]}  g5 {[%clk 0:00:06]} 36. Rxg5+ {[%clk 0:00:25]}  Kf7 {[%clk 0:00:04]} 37. Rg6 {[%clk 0:00:24]}  Ke7 {[%clk 0:00:04]} 38. Rg7+ {[%clk 0:00:14]}  Rf7 {[%clk 0:00:02]} 39. Nd5+ {[%clk 0:00:15]}  Kf8 {[%clk 0:00:02]} 40. Rxf7+ {[%clk 0:00:15]}  Kxf7 {[%clk 0:00:03]} 41. Qxf6+ {[%clk 0:00:15]}  Kg8 {[%clk 0:00:03]} 42. Ne7+ {[%clk 0:00:15]}  Kh7 {[%clk 0:00:04]} 43. Qg6+ {[%clk 0:00:16]}  Kh8 {[%clk 0:00:04]} 44. Qh6# {[%clk 0:00:17]} 1-0


[Site "https://www.chess.com"]

[Event "Titled Tuesday Blitz August 1 Early 2023"]
[White "Poormosavi, Seyed Kian"]
[Black "Rasulov, Vugar"]
[WhiteFideId "12585807"]
[BlackFideId "13402390"]
[WhiteElo "2668"]
[BlackElo "2850"]
[Result "0-1"]
[Round "5"]
[TimeControl "180+1"]
[Date "2023.08.01"]
[WhiteClock "0:00:22"]
[BlackClock "0:01:04"]
[Board "30"]

1. Nf3 {[%clk 0:02:40]}  d5 {[%clk 0:02:59]} 2. g3 {[%clk 0:02:40]}  c6 {[%clk 0:03:00]} 3. Bg2 {[%clk 0:02:39]}  Nf6 {[%clk 0:03:00]} 4. O-O {[%clk 0:02:39]}  Bg4 {[%clk 0:03:00]} 5. h3 {[%clk 0:02:37]}  Bh5 {[%clk 0:03:01]} 6. d3 {[%clk 0:02:37]}  Nbd7 {[%clk 0:03:00]} 7. c4 {[%clk 0:02:36]}  e6 {[%clk 0:03:00]} 8. Nbd2 {[%clk 0:02:37]}  Be7 {[%clk 0:02:58]} 9. b3 {[%clk 0:02:37]}  O-O {[%clk 0:02:57]} 10. Bb2 {[%clk 0:02:36]}  a5 {[%clk 0:02:57]} 11. a3 {[%clk 0:02:35]}  Re8 {[%clk 0:02:56]} 12. Qc2 {[%clk 0:02:35]}  Bg6 {[%clk 0:02:40]} 13. Nh4 {[%clk 0:02:32]}  Bd6 {[%clk 0:02:40]} 14. Nxg6 {[%clk 0:02:31]}  hxg6 {[%clk 0:02:41]} 15. e4 {[%clk 0:02:28]}  dxe4 {[%clk 0:02:40]} 16. dxe4 {[%clk 0:02:27]}  Qb6 {[%clk 0:02:29]} 17. Kh2 {[%clk 0:02:26]}  e5 {[%clk 0:02:23]} 18. Rad1 {[%clk 0:02:07]}  Nc5 {[%clk 0:02:15]} 19. f4 {[%clk 0:01:51]}  exf4 {[%clk 0:02:05]} 20. gxf4 {[%clk 0:01:52]}  Nh5 {[%clk 0:01:57]} 21. e5 {[%clk 0:01:50]}  Bc7 {[%clk 0:01:57]} 22. Bd4 {[%clk 0:01:44]}  Rad8 {[%clk 0:01:53]} 23. Bg1 {[%clk 0:01:32]}  g5 {[%clk 0:01:52]} 24. Ne4 {[%clk 0:01:31]}  Qxb3 {[%clk 0:01:51]} 25. Qxb3 {[%clk 0:01:28]}  Nxb3 {[%clk 0:01:52]} 26. Nxg5 {[%clk 0:01:23]}  Nxf4 {[%clk 0:01:37]} 27. Rxd8 {[%clk 0:01:19]}  Rxd8 {[%clk 0:01:38]} 28. Rxf4 {[%clk 0:01:08]}  Bxe5 {[%clk 0:01:38]} 29. Kg3 {[%clk 0:01:09]}  Nd2 {[%clk 0:01:24]} 30. Kg4 {[%clk 0:01:04]}  Bxf4 {[%clk 0:01:24]} 31. Kxf4 {[%clk 0:01:05]}  Nxc4 {[%clk 0:01:24]} 32. Ne4 {[%clk 0:00:57]}  Nxa3 {[%clk 0:01:21]} 33. Bb6 {[%clk 0:00:56]}  Ra8 {[%clk 0:01:14]} 34. Nc5 {[%clk 0:00:55]}  Nc4 {[%clk 0:01:14]} 35. Bc7 {[%clk 0:00:37]}  a4 {[%clk 0:01:14]} 36. Bf1 {[%clk 0:00:37]}  b5 {[%clk 0:01:09]} 37. Be5 {[%clk 0:00:25]}  a3 {[%clk 0:01:03]} 38. Bxc4 {[%clk 0:00:24]}  bxc4 {[%clk 0:01:04]} 39. Ke4 {[%clk 0:00:24]}  a2 {[%clk 0:01:03]} 40. Ba1 {[%clk 0:00:22]}  Rb8 {[%clk 0:01:04]} 0-1


[Site "https://www.chess.com"]

[Event "Titled Tuesday Blitz August 1 Early 2023"]
[White "Talibov, Shiroghlan"]
[Black "Weishaeutel, Moritz"]
[WhiteFideId "13429078"]
[BlackFideId "12967300"]
[WhiteElo "2843"]
[BlackElo "2648"]
[Result "1-0"]
[Round "5"]
[TimeControl "180+1"]
[Date "2023.08.01"]
[WhiteClock "0:00:54"]
[BlackClock "0:00:03"]
[Board "34"]

1. Nf3 {[%clk 0:02:57]}  Nf6 {[%clk 0:02:57]} 2. Rg1 {[%clk 0:02:54]}  d5 {[%clk 0:02:54]} 3. b3 {[%clk 0:02:51]}  c5 {[%clk 0:02:54]} 4. Bb2 {[%clk 0:02:49]}  Nc6 {[%clk 0:02:55]} 5. e3 {[%clk 0:02:47]}  Bf5 {[%clk 0:02:49]} 6. h3 {[%clk 0:02:45]}  e6 {[%clk 0:02:49]} 7. g4 {[%clk 0:02:45]}  Bg6 {[%clk 0:02:49]} 8. h4 {[%clk 0:02:39]}  h5 {[%clk 0:02:46]} 9. g5 {[%clk 0:02:39]}  Ne4 {[%clk 0:02:46]} 10. d3 {[%clk 0:02:37]}  Nd6 {[%clk 0:02:45]} 11. Nbd2 {[%clk 0:02:34]}  Nf5 {[%clk 0:02:26]} 12. e4 {[%clk 0:02:30]}  Nfd4 {[%clk 0:02:19]} 13. Nxd4 {[%clk 0:02:28]}  Nxd4 {[%clk 0:02:20]} 14. Bg2 {[%clk 0:02:26]}  dxe4 {[%clk 0:02:15]} 15. Bxe4 {[%clk 0:02:21]}  Bxe4 {[%clk 0:02:09]} 16. Nxe4 {[%clk 0:02:22]}  Qd5 {[%clk 0:02:04]} 17. Rg3 {[%clk 0:02:14]}  Be7 {[%clk 0:01:56]} 18. Qd2 {[%clk 0:02:13]}  O-O-O {[%clk 0:01:44]} 19. O-O-O {[%clk 0:02:11]}  e5 {[%clk 0:01:21]} 20. Kb1 {[%clk 0:02:10]}  Kb8 {[%clk 0:01:17]} 21. f4 {[%clk 0:02:09]}  exf4 {[%clk 0:01:15]} 22. Qxf4+ {[%clk 0:02:08]}  Ka8 {[%clk 0:01:14]} 23. Rg2 {[%clk 0:02:06]}  Rhf8 {[%clk 0:00:59]} 24. Rf2 {[%clk 0:02:03]}  f5 {[%clk 0:00:55]} 25. gxf6 {[%clk 0:02:02]}  Bxf6 {[%clk 0:00:56]} 26. Nxf6 {[%clk 0:02:00]}  Rxf6 {[%clk 0:00:57]} 27. Qg3 {[%clk 0:01:56]}  Rxf2 {[%clk 0:00:51]} 28. Qxf2 {[%clk 0:01:56]}  g6 {[%clk 0:00:52]} 29. a4 {[%clk 0:01:54]}  a6 {[%clk 0:00:47]} 30. Qf6 {[%clk 0:01:53]}  Rd6 {[%clk 0:00:45]} 31. Qh8+ {[%clk 0:01:49]}  Ka7 {[%clk 0:00:46]} 32. Qf8 {[%clk 0:01:36]}  Rb6 {[%clk 0:00:33]} 33. Rd2 {[%clk 0:01:27]}  Nf3 {[%clk 0:00:27]} 34. Re2 {[%clk 0:01:20]}  Nd4 {[%clk 0:00:03]} 35. Re8 {[%clk 0:01:17]}  Re6 {[%clk 0:00:04]} 36. Ra8+ {[%clk 0:01:12]}  Kb6 {[%clk 0:00:04]} 37. Rd8 {[%clk 0:01:12]}  Re1+ {[%clk 0:00:03]} 38. Ka2 {[%clk 0:01:12]}  Qc6 {[%clk 0:00:04]} 39. Rd6 {[%clk 0:00:55]}  Nxc2 {[%clk 0:00:04]} 40. Rxc6+ {[%clk 0:00:55]}  Kxc6 {[%clk 0:00:05]} 41. Qf6+ {[%clk 0:00:54]}  Kc7 {[%clk 0:00:05]} 42. Be5+ {[%clk 0:00:54]}  Kd7 {[%clk 0:00:04]} 43. Qf7+ {[%clk 0:00:54]}  Kc6 {[%clk 0:00:03]} 44. Qe6# {[%clk 0:00:54]} 1-0


[Site "https://www.chess.com"]

[Event "Titled Tuesday Blitz August 1 Early 2023"]
[White "Rustemov, Alexander"]
[Black "Popilski, Gil"]
[WhiteFideId "4119002"]
[BlackFideId "2809060"]
[WhiteElo "2836"]
[BlackElo "2646"]
[Result "1-0"]
[Round "5"]
[TimeControl "180+1"]
[Date "2023.08.01"]
[WhiteClock "0:00:30"]
[BlackClock "0:00:00"]
[Board "35"]

1. d4 {[%clk 0:03:00]}  Nf6 {[%clk 0:02:53]} 2. c4 {[%clk 0:03:01]}  g6 {[%clk 0:02:53]} 3. Nf3 {[%clk 0:03:01]}  Bg7 {[%clk 0:02:53]} 4. g3 {[%clk 0:03:02]}  c6 {[%clk 0:02:52]} 5. Bg2 {[%clk 0:03:00]}  d5 {[%clk 0:02:53]} 6. Nbd2 {[%clk 0:02:55]}  O-O {[%clk 0:02:50]} 7. O-O {[%clk 0:02:55]}  Bf5 {[%clk 0:02:51]} 8. b3 {[%clk 0:02:54]}  a5 {[%clk 0:02:51]} 9. a3 {[%clk 0:02:51]}  Nbd7 {[%clk 0:02:48]} 10. Bb2 {[%clk 0:02:50]}  b5 {[%clk 0:02:48]} 11. cxb5 {[%clk 0:02:34]}  cxb5 {[%clk 0:02:48]} 12. Rc1 {[%clk 0:02:33]}  Ne4 {[%clk 0:02:48]} 13. Nh4 {[%clk 0:02:21]}  Nxd2 {[%clk 0:02:27]} 14. Qxd2 {[%clk 0:02:22]}  Be6 {[%clk 0:02:24]} 15. Nf3 {[%clk 0:02:13]}  h6 {[%clk 0:02:11]} 16. Ne5 {[%clk 0:02:12]}  Nf6 {[%clk 0:01:53]} 17. Nd3 {[%clk 0:01:54]}  Ne4 {[%clk 0:01:51]} 18. Qe3 {[%clk 0:01:52]}  Nd6 {[%clk 0:01:43]} 19. Nf4 {[%clk 0:01:48]}  Nf5 {[%clk 0:01:42]} 20. Qd3 {[%clk 0:01:44]}  Qd6 {[%clk 0:01:38]} 21. Rc5 {[%clk 0:01:42]}  b4 {[%clk 0:01:33]} 22. a4 {[%clk 0:01:41]}  Rfd8 {[%clk 0:01:13]} 23. Rfc1 {[%clk 0:01:40]}  Rac8 {[%clk 0:01:02]} 24. e3 {[%clk 0:01:34]}  Rxc5 {[%clk 0:01:01]} 25. Rxc5 {[%clk 0:01:34]}  Rc8 {[%clk 0:00:58]} 26. Rxc8+ {[%clk 0:01:14]}  Bxc8 {[%clk 0:00:59]} 27. Bxd5 {[%clk 0:01:07]}  g5 {[%clk 0:00:48]} 28. Be4 {[%clk 0:00:49]}  Ba6 {[%clk 0:00:28]} 29. Qc2 {[%clk 0:00:44]}  Nxd4 {[%clk 0:00:25]} 30. Bxd4 {[%clk 0:00:39]}  Bxd4 {[%clk 0:00:23]} 31. exd4 {[%clk 0:00:39]}  gxf4 {[%clk 0:00:23]} 32. Qc5 {[%clk 0:00:33]}  fxg3 {[%clk 0:00:22]} 33. hxg3 {[%clk 0:00:32]}  Qxc5 {[%clk 0:00:16]} 34. dxc5 {[%clk 0:00:33]}  e6 {[%clk 0:00:16]} 35. Ba8 {[%clk 0:00:29]}  Kf8 {[%clk 0:00:16]} 36. c6 {[%clk 0:00:30]}  Ke7 {[%clk 0:00:00]} 37. Bb7 {[%clk 0:00:30]} 1-0


[Site "https://www.chess.com"]

[Event "Titled Tuesday Blitz August 1 Early 2023"]
[White "Harvey, Marcus R"]
[Black "Malek, Jan"]
[WhiteFideId "400092"]
[BlackFideId "21864080"]
[WhiteElo "2801"]
[BlackElo "2638"]
[Result "1-0"]
[Round "5"]
[TimeControl "180+1"]
[Date "2023.08.01"]
[WhiteClock "0:01:15"]
[BlackClock "0:00:02"]
[Board "37"]

1. d4 {[%clk 0:02:48]}  f5 {[%clk 0:02:42]} 2. Bg5 {[%clk 0:02:47]}  d5 {[%clk 0:02:40]} 3. c4 {[%clk 0:02:44]}  c6 {[%clk 0:02:35]} 4. e3 {[%clk 0:02:45]}  Qb6 {[%clk 0:02:26]} 5. Qd2 {[%clk 0:02:30]}  Nd7 {[%clk 0:02:23]} 6. cxd5 {[%clk 0:02:29]}  cxd5 {[%clk 0:02:22]} 7. Nc3 {[%clk 0:02:28]}  Ngf6 {[%clk 0:02:23]} 8. Bd3 {[%clk 0:02:20]}  e6 {[%clk 0:02:23]} 9. f3 {[%clk 0:02:18]}  Bd6 {[%clk 0:02:21]} 10. Nge2 {[%clk 0:02:18]}  O-O {[%clk 0:02:20]} 11. O-O {[%clk 0:02:18]}  a6 {[%clk 0:02:19]} 12. Rac1 {[%clk 0:02:17]}  Nb8 {[%clk 0:01:47]} 13. Na4 {[%clk 0:02:15]}  Qd8 {[%clk 0:01:46]} 14. Bf4 {[%clk 0:02:13]}  Nc6 {[%clk 0:01:45]} 15. Bxd6 {[%clk 0:02:08]}  Qxd6 {[%clk 0:01:45]} 16. a3 {[%clk 0:01:59]}  Bd7 {[%clk 0:01:44]} 17. Nc5 {[%clk 0:01:57]}  Rab8 {[%clk 0:01:41]} 18. Rc2 {[%clk 0:01:55]}  Be8 {[%clk 0:00:49]} 19. Rfc1 {[%clk 0:01:53]}  g5 {[%clk 0:00:42]} 20. Qe1 {[%clk 0:01:22]}  h6 {[%clk 0:00:28]} 21. Qg3 {[%clk 0:01:19]}  Qxg3 {[%clk 0:00:24]} 22. hxg3 {[%clk 0:01:20]}  Nd8 {[%clk 0:00:21]} 23. b4 {[%clk 0:01:17]}  Bb5 {[%clk 0:00:20]} 24. Bxb5 {[%clk 0:01:16]}  axb5 {[%clk 0:00:21]} 25. Nc3 {[%clk 0:01:17]}  b6 {[%clk 0:00:19]} 26. Nd3 {[%clk 0:01:17]}  Nf7 {[%clk 0:00:10]} 27. Nxb5 {[%clk 0:01:17]}  g4 {[%clk 0:00:10]} 28. Nf4 {[%clk 0:01:15]}  Ng5 {[%clk 0:00:08]} 29. Kf2 {[%clk 0:01:15]}  Rfe8 {[%clk 0:00:06]} 30. Rc6 {[%clk 0:01:15]}  gxf3 {[%clk 0:00:04]} 31. gxf3 {[%clk 0:01:15]}  Kf7 {[%clk 0:00:05]} 32. Nd6+ {[%clk 0:01:15]}  Kg7 {[%clk 0:00:04]} 33. Nxe8+ {[%clk 0:01:16]}  Rxe8 {[%clk 0:00:04]} 34. Rxb6 {[%clk 0:01:16]}  h5 {[%clk 0:00:04]} 35. Rc7+ {[%clk 0:01:16]}  Kg8 {[%clk 0:00:02]} 36. Rbb7 {[%clk 0:01:15]} 1-0


[Site "https://www.chess.com"]

[Event "Titled Tuesday Blitz August 1 Early 2023"]
[White "Mamedov, Edgar"]
[Black "Remizov, Yaroslav"]
[WhiteFideId "13739980"]
[BlackFideId "34134015"]
[WhiteElo "2627"]
[BlackElo "2777"]
[Result "0-1"]
[Round "5"]
[TimeControl "180+1"]
[Date "2023.08.01"]
[WhiteClock "0:00:03"]
[BlackClock "0:00:31"]
[Board "40"]

1. d4 {[%clk 0:03:00]}  Nf6 {[%clk 0:02:58]} 2. Bg5 {[%clk 0:02:58]}  d5 {[%clk 0:02:55]} 3. Bxf6 {[%clk 0:02:56]}  exf6 {[%clk 0:02:54]} 4. e3 {[%clk 0:02:56]}  c5 {[%clk 0:02:53]} 5. dxc5 {[%clk 0:02:55]}  Bxc5 {[%clk 0:02:52]} 6. c3 {[%clk 0:02:44]}  O-O {[%clk 0:02:51]} 7. Nf3 {[%clk 0:02:43]}  Nc6 {[%clk 0:02:46]} 8. Nbd2 {[%clk 0:02:42]}  Qc7 {[%clk 0:02:38]} 9. Nb3 {[%clk 0:02:40]}  Bb6 {[%clk 0:02:30]} 10. Qxd5 {[%clk 0:02:35]}  Rd8 {[%clk 0:02:28]} 11. Qe4 {[%clk 0:02:34]}  f5 {[%clk 0:02:24]} 12. Qb1 {[%clk 0:02:32]}  f4 {[%clk 0:02:22]} 13. e4 {[%clk 0:02:21]}  Bg4 {[%clk 0:02:21]} 14. Be2 {[%clk 0:02:12]}  Bxf3 {[%clk 0:02:11]} 15. Bxf3 {[%clk 0:02:10]}  Ne5 {[%clk 0:02:11]} 16. O-O {[%clk 0:01:32]}  Nxf3+ {[%clk 0:02:11]} 17. gxf3 {[%clk 0:01:32]}  Rd6 {[%clk 0:02:10]} 18. Kh1 {[%clk 0:01:18]}  Rh6 {[%clk 0:02:09]} 19. Nd4 {[%clk 0:01:12]}  Bxd4 {[%clk 0:02:01]} 20. cxd4 {[%clk 0:01:11]}  Qd7 {[%clk 0:01:55]} 21. Qc1 {[%clk 0:01:07]}  Rh4 {[%clk 0:01:47]} 22. Rg1 {[%clk 0:01:03]}  Qh3 {[%clk 0:01:46]} 23. Rg2 {[%clk 0:01:02]}  Qxf3 {[%clk 0:01:47]} 24. Qc3 {[%clk 0:00:58]}  Qxe4 {[%clk 0:01:38]} 25. d5 {[%clk 0:00:57]}  g6 {[%clk 0:01:33]} 26. Rd1 {[%clk 0:00:53]}  Rd8 {[%clk 0:01:24]} 27. d6 {[%clk 0:00:36]}  Qe6 {[%clk 0:01:00]} 28. Qd4 {[%clk 0:00:35]}  f3 {[%clk 0:00:54]} 29. Qxh4 {[%clk 0:00:34]}  fxg2+ {[%clk 0:00:55]} 30. Kxg2 {[%clk 0:00:33]}  Rxd6 {[%clk 0:00:55]} 31. Rxd6 {[%clk 0:00:31]}  Qxd6 {[%clk 0:00:56]} 32. Qe4 {[%clk 0:00:30]}  Qc6 {[%clk 0:00:52]} 33. Qxc6 {[%clk 0:00:30]}  bxc6 {[%clk 0:00:53]} 34. Kf3 {[%clk 0:00:24]}  f6 {[%clk 0:00:50]} 35. Ke4 {[%clk 0:00:23]}  Kf7 {[%clk 0:00:50]} 36. Kd4 {[%clk 0:00:21]}  Ke6 {[%clk 0:00:50]} 37. Kc5 {[%clk 0:00:21]}  Kd7 {[%clk 0:00:51]} 38. f4 {[%clk 0:00:20]}  g5 {[%clk 0:00:47]} 39. fxg5 {[%clk 0:00:19]}  fxg5 {[%clk 0:00:48]} 40. b4 {[%clk 0:00:18]}  h5 {[%clk 0:00:45]} 41. Kd4 {[%clk 0:00:17]}  Kd6 {[%clk 0:00:43]} 42. Ke4 {[%clk 0:00:16]}  Ke6 {[%clk 0:00:43]} 43. a3 {[%clk 0:00:15]}  g4 {[%clk 0:00:37]} 44. Kf4 {[%clk 0:00:14]}  Kf6 {[%clk 0:00:37]} 45. a4 {[%clk 0:00:13]}  a6 {[%clk 0:00:34]} 46. Ke4 {[%clk 0:00:12]}  Kg5 {[%clk 0:00:32]} 47. Ke3 {[%clk 0:00:10]}  Kf5 {[%clk 0:00:31]} 48. h4 {[%clk 0:00:09]}  gxh3 {[%clk 0:00:31]} 49. Kf2 {[%clk 0:00:03]}  Ke4 {[%clk 0:00:31]} 0-1


[Site "https://www.chess.com"]

[Event "Titled Tuesday Blitz August 1 Early 2023"]
[White "Havlik, Jan"]
[Black "Wagh Suyog"]
[WhiteFideId "319783"]
[BlackFideId "25071688"]
[WhiteElo "2618"]
[BlackElo "2777"]
[Result "0-1"]
[Round "5"]
[TimeControl "180+1"]
[Date "2023.08.01"]
[WhiteClock "0:01:19"]
[BlackClock "0:00:44"]
[Board "41"]

1. e4 {[%clk 0:03:00]}  c5 {[%clk 0:02:58]} 2. Nf3 {[%clk 0:03:00]}  d6 {[%clk 0:02:58]} 3. d4 {[%clk 0:03:00]}  cxd4 {[%clk 0:02:58]} 4. Nxd4 {[%clk 0:03:01]}  Nf6 {[%clk 0:02:59]} 5. Nc3 {[%clk 0:03:02]}  a6 {[%clk 0:02:59]} 6. Bc4 {[%clk 0:03:03]}  e6 {[%clk 0:02:57]} 7. Bb3 {[%clk 0:03:03]}  Nbd7 {[%clk 0:02:54]} 8. O-O {[%clk 0:03:02]}  Nc5 {[%clk 0:02:54]} 9. Bg5 {[%clk 0:03:02]}  Be7 {[%clk 0:02:52]} 10. Qe1 {[%clk 0:03:02]}  Qc7 {[%clk 0:02:40]} 11. Rd1 {[%clk 0:03:02]}  b5 {[%clk 0:02:35]} 12. f4 {[%clk 0:03:01]}  b4 {[%clk 0:02:25]} 13. e5 {[%clk 0:03:01]}  bxc3 {[%clk 0:02:20]} 14. exf6 {[%clk 0:03:01]}  gxf6 {[%clk 0:02:18]} 15. Qxc3 {[%clk 0:02:55]}  Rg8 {[%clk 0:02:08]} 16. Bh4 {[%clk 0:02:51]}  Bb7 {[%clk 0:02:03]} 17. Bg3 {[%clk 0:02:49]}  h5 {[%clk 0:01:57]} 18. Ba4+ {[%clk 0:02:44]}  Kf8 {[%clk 0:01:56]} 19. b4 {[%clk 0:02:43]}  h4 {[%clk 0:01:52]} 20. bxc5 {[%clk 0:02:43]}  hxg3 {[%clk 0:01:47]} 21. c6 {[%clk 0:02:42]}  gxh2+ {[%clk 0:01:47]} 22. Kxh2 {[%clk 0:02:39]}  Bc8 {[%clk 0:01:33]} 23. Rb1 {[%clk 0:02:34]}  d5 {[%clk 0:01:29]} 24. g3 {[%clk 0:02:23]}  e5 {[%clk 0:01:27]} 25. fxe5 {[%clk 0:02:01]}  Qxe5 {[%clk 0:01:25]} 26. Rbe1 {[%clk 0:01:51]}  Qh5+ {[%clk 0:01:24]} 27. Kg1 {[%clk 0:01:48]}  Bd6 {[%clk 0:01:20]} 28. Re3 {[%clk 0:01:26]}  Rh8 {[%clk 0:01:07]} 29. c7 {[%clk 0:01:19]}  Qh2# {[%clk 0:00:44]} 0-1


[Site "https://www.chess.com"]